lending/lending_fUSD_20241214
["ID","MTS","AMOUNT","RATE_DAILY","PERIOD"]
[345326715,1734150652063,-500.0,0.00021249,3]
[345326716,1734150652073,-500.0,0.00021249,3]
[345326717,1734150652082,-500.0,0.00021249,3]
[345326718,1734150652091,-500.0,0.00021249,3]
[345326719,1734150652101,-532.04,0.00021249,3]
[345326720,1734150652110,-500.0,0.00021249,3]
[345326721,1734150652120,-500.0,0.00021249,3]
[345326722,1734150652130,-500.0,0.00021249,3]
[345326723,1734150652139,-500.0,0.00021249,3]
[345326724,1734150652149,-500.0,0.00021249,3]
[345326725,1734150652158,-500.0,0.00021249,3]
[345326726,1734150652167,-500.0,0.00021249,3]
[345326727,1734150652176,-472.99340126,0.00021249,3]
[345326728,1734150652186,-500.0,0.00021249,3]
[345326729,1734150652196,-500.0,0.00021249,3]
[345326730,1734150652205,-500.0,0.00021249,3]
[345326731,1734150652214,-500.0,0.00021249,3]
[345326732,1734150652223,-500.0,0.00021249,3]
[345326733,1734150652232,-500.0,0.00021249,3]
[345326734,1734150652241,-500.0,0.00021249,3]
[345326735,1734150652250,-500.0,0.00021249,3]
[345326736,1734150652260,-500.0,0.00021249,3]
[345326737,1734150652269,-500.0,0.00021249,3]
[345326738,1734150652279,-500.0,0.00021249,3]
[345326739,1734150652288,-500.0,0.00021249,3]
[345326740,1734150652297,-500.0,0.00021249,3]
[345326741,1734150652306,-500.0,0.00021249,3]
[345326742,1734150652315,-500.0,0.00021249,3]
[345326743,1734150652324,-500.0,0.00021249,3]
[345326744,1734150652333,-312.89687613,0.00021249,3]
[345326745,1734150652343,-500.0,0.00021249,3]
[345326746,1734150652353,-500.0,0.00021249,3]
[345326747,1734150652364,-500.0,0.00021249,3]
[345326748,1734150652376,-500.0,0.00021249,3]
[345326749,1734150652386,-500.0,0.00021249,3]
[345326750,1734150652503,-500.0,0.00021249,3]
[345326751,1734150652536,-160.40482387,0.00021249,3]
[345326752,1734150652547,-500.0,0.00021249,3]
[345326753,1734150652556,-330.08,0.00021249,3]
[345326754,1734150652566,-500.0,0.00021249,3]
[345326755,1734150652575,-203.1,0.00021249,3]
[345326756,1734150652584,-500.0,0.00021249,3]
[345326757,1734150652594,-500.0,0.00021249,3]
[345326758,1734150652603,-500.0,0.00021249,3]
[345326759,1734150652611,-500.0,0.00021249,3]
[345326760,1734150652621,-500.0,0.00021249,3]
[345326761,1734150652630,-500.0,0.00021249,3]
[345326762,1734150652639,-500.0,0.00021249,3]
[345326763,1734150652648,-500.0,0.00021249,3]
[345326764,1734150652657,-500.0,0.00021249,3]
[345326765,1734150652666,-500.0,0.00021249,3]
[345326766,1734150652674,-500.0,0.00021249,3]
[345326767,1734150652683,-500.0,0.00021249,3]
[345326768,1734150652693,-500.0,0.00021249,3]
[345326769,1734150652702,-500.0,0.00021249,3]
[345326770,1734150652711,-500.0,0.00021249,3]
[345326771,1734150652720,-500.0,0.00021249,3]
[345326772,1734150652729,-419.46837157,0.00021249,3]
[345326773,1734150652738,-500.0,0.00021249,3]
[345326774,1734150652747,-500.0,0.00021249,3]
[345326775,1734150652756,-500.0,0.00021249,3]
[345326776,1734150652767,-500.0,0.00021249,3]
[345326777,1734150652776,-500.0,0.00021249,3]
[345326778,1734150652785,-500.0,0.00021249,3]
[345326779,1734150652794,-500.0,0.00021249,3]
[345326780,1734150652803,-500.0,0.00021249,3]
[345326781,1734150652812,-500.0,0.00021249,3]
[345326782,1734150652821,-523.7787209,0.00021249,3]
[345326783,1734150652831,-500.0,0.00021249,3]
[345326784,1734150652840,-500.0,0.00021249,3]
[345326785,1734150652849,-500.0,0.00021249,3]
[345326786,1734150652859,-500.0,0.00021249,3]
[345326787,1734150652867,-680.67,0.00021249,3]
[345326788,1734150652877,-500.0,0.00021249,3]
[345326789,1734150652886,-680.67,0.00021249,3]
[345326790,1734150652896,-500.0,0.00021249,3]
[345326791,1734150652905,-500.0,0.00021249,3]
[345326792,1734150652914,-680.67,0.00021249,3]
[345326793,1734150652923,-500.0,0.00021249,3]
[345326794,1734150652932,-500.0,0.00021249,3]
[345326795,1734150652942,-680.67,0.00021249,3]
[345326796,1734150652951,-500.0,0.00021249,3]
[345326797,1734150652960,-509.06,0.00021249,3]
[345326798,1734150652969,-680.67,0.00021249,3]
[345326799,1734150652978,-500.0,0.00021249,3]
[345326800,1734150652987,-680.67,0.00021249,3]
[345326801,1734150652996,-500.0,0.00021249,3]
[345326802,1734150653005,-680.67,0.00021249,3]
[345326803,1734150653016,-500.0,0.00021249,3]
[345326804,1734150653025,-500.0,0.00021249,3]
[345326805,1734150653034,-680.67,0.00021249,3]
[345326806,1734150653043,-500.0,0.00021249,3]
[345326807,1734150653052,-680.67,0.00021249,3]
[345326808,1734150653061,-222.5062103,0.00021249,3]
[345326809,1734150653070,-680.67,0.00021249,3]
[345326810,1734150653080,-680.67,0.00021249,3]
[345326811,1734150653089,-680.67,0.00021249,3]
[345326812,1734150653099,-680.67,0.00021249,3]
[345326813,1734150653109,-680.67,0.00021249,3]
[345326814,1734150653121,-680.67,0.00021249,3]
[345326815,1734150653130,-680.67,0.00021249,3]
[345326816,1734150653140,-680.67,0.00021249,3]
[345326817,1734150653149,-680.67,0.00021249,3]
[345326818,1734150653158,-680.67,0.00021249,3]
[345326819,1734150653168,-680.67,0.00021249,3]
[345326820,1734150653178,-680.69020813,0.00021249,3]
[345326821,1734150653187,-500.0,0.00021249,3]
[345326822,1734150653196,-500.0,0.00021249,3]
[345326823,1734150653206,-500.0,0.00021249,3]
[345326824,1734150653217,-500.0,0.00021249,3]
[345326825,1734150653227,-500.0,0.00021249,3]
[345326826,1734150653236,-500.0,0.00021249,3]
[345326827,1734150653245,-500.0,0.00021249,3]
[345326828,1734150653254,-545.12,0.00021249,3]
[345326829,1734150653265,-500.0,0.00021249,3]
[345326830,1734150653274,-500.0,0.00021249,3]
[345326831,1734150653283,-500.0,0.00021249,3]
[345326832,1734150653292,-500.0,0.00021249,3]
[345326833,1734150653302,-500.0,0.00021249,3]
[345326834,1734150653311,-239.32,0.00021249,3]
[345326835,1734150653320,-500.0,0.00021249,3]
[345326836,1734150653329,-500.0,0.00021249,3]
[345326837,1734150653338,-500.0,0.00021249,3]
[345326838,1734150653347,-500.0,0.00021249,3]
[345326839,1734150653357,-500.0,0.00021249,3]
[345326840,1734150653369,-500.0,0.00021249,3]
[345326841,1734150653379,-500.0,0.00021249,3]
[345326842,1734150653389,-500.0,0.00021249,3]
[345326843,1734150653398,-500.0,0.00021249,3]
[345326844,1734150653407,-500.0,0.00021249,3]
[345326845,1734150653416,-500.0,0.00021249,3]
[345326846,1734150653425,-500.0,0.00021249,3]
[345326847,1734150653434,-500.0,0.00021249,3]
[345326848,1734150653443,-645.86,0.00021249,3]
[345326849,1734150653452,-500.0,0.00021249,3]
[345326850,1734150653461,-371.28978224,0.00021249,3]
[345326851,1734150653470,-500.0,0.00021249,3]
[345326852,1734150653479,-645.86,0.00021249,3]
[345326853,1734150653489,-364.33,0.00021249,3]
[345326854,1734150653498,-645.86,0.00021249,3]
[345326855,1734150653507,-645.86,0.00021249,3]
[345326856,1734150653518,-645.86,0.00021249,3]
[345326857,1734150653528,-645.86,0.00021249,3]
[345326858,1734150653537,-645.86,0.00021249,3]
[345326859,1734150653547,-645.86,0.00021249,3]
[345326860,1734150653557,-645.86,0.00021249,3]
[345326861,1734150653566,-645.86,0.00021249,3]
[345326862,1734150653576,-645.86,0.00021249,3]
[345326863,1734150653585,-500.0,0.00021249,3]
[345326864,1734150653595,-645.86,0.00021249,3]
[345326865,1734150653604,-500.0,0.00021249,3]
[345326866,1734150653614,-645.86,0.00021249,3]
[345326867,1734150653623,-500.0,0.00021249,3]
[345326868,1734150653632,-645.86,0.00021249,3]
[345326869,1734150653642,-580.1,0.00021249,3]
[345326870,1734150653651,-645.86,0.00021249,3]
[345326871,1734150653661,-645.86,0.00021249,3]
[345326872,1734150653671,-645.86,0.00021249,3]
[345326873,1734150653680,-645.86,0.00021249,3]
[345326874,1734150653689,-645.86,0.00021249,3]
[345326875,1734150653699,-645.86,0.00021249,3]
[345326876,1734150653708,-646.05251683,0.00021249,3]
[345326877,1734150653718,-500.0,0.00021249,3]
[345326878,1734150653727,-500.0,0.00021249,3]
[345326879,1734150653736,-500.0,0.00021249,3]
[345326880,1734150653745,-631.72,0.00021249,3]
[345326881,1734150653754,-500.0,0.00021249,3]
[345326882,1734150653765,-500.0,0.00021249,3]
[345326883,1734150653774,-500.0,0.00021249,3]
[345326884,1734150653783,-500.0,0.00021249,3]
[345326885,1734150653793,-500.0,0.00021249,3]
[345326886,1734150653802,-500.0,0.00021249,3]
[345326887,1734150653811,-500.0,0.00021249,3]
[345326888,1734150653820,-500.0,0.00021249,3]
[345326889,1734150653829,-500.0,0.00021249,3]
[345326890,1734150653838,-500.0,0.00021249,3]
[345326891,1734150653847,-500.0,0.00021249,3]
[345326892,1734150653856,-500.0,0.00021249,3]
[345326893,1734150653866,-500.0,0.00021249,3]
[345326894,1734150653875,-524.05,0.00021249,3]
[345326895,1734150653884,-500.0,0.00021249,3]
[345326896,1734150653893,-500.0,0.00021249,3]
[345326897,1734150653902,-503.732239,0.00021249,3]
[345326898,1734150653911,-588.94,0.00021249,3]
[345326899,1734150653920,-588.94,0.00021249,3]
[345326900,1734150653929,-588.94,0.00021249,3]
[345326901,1734150653938,-588.94,0.00021249,3]
[345326902,1734150653947,-588.94,0.00021249,3]
[345326903,1734150653956,-588.94,0.00021249,3]
[345326904,1734150653965,-588.94,0.00021249,3]
[345326905,1734150653975,-588.94,0.00021249,3]
[345326906,1734150653984,-588.94,0.00021249,3]
[345326907,1734150653994,-588.94,0.00021249,3]
[345326908,1734150654004,-588.94,0.00021249,3]
[345326909,1734150654014,-588.94,0.00021249,3]
[345326910,1734150654024,-588.94,0.00021249,3]
[345326911,1734150654034,-588.94,0.00021249,3]
[345326912,1734150654043,-588.94,0.00021249,3]
[345326913,1734150654052,-588.94,0.00021249,3]
[345326914,1734150654061,-588.94,0.00021249,3]
[345326915,1734150654070,-588.94,0.00021249,3]
[345326916,1734150654079,-588.94,0.00021249,3]
[345326917,1734150654088,-589.1,0.00021249,3]
[345326918,1734150654097,-500.0,0.00021249,3]
[345326919,1734150654106,-500.0,0.00021249,3]
[345326920,1734150654115,-566.48,0.00021249,3]
[345326921,1734150654125,-999.3,0.00021249,3]
[345326922,1734150654134,-999.3,0.00021249,3]
[345326923,1734150654143,-999.3,0.00021249,3]
[345326924,1734150654153,-999.3,0.00021249,3]
[345326925,1734150654162,-999.3,0.00021249,3]
[345326926,1734150654171,-999.3,0.00021249,3]
[345326927,1734150654180,-999.3,0.00021249,3]
[345326928,1734150654189,-999.3,0.00021249,3]
[345326929,1734150654198,-999.3,0.00021249,3]
[345326930,1734150654207,-999.3,0.00021249,3]
[345326931,1734150654216,-999.3,0.00021249,3]
[345326932,1734150654225,-500.0,0.00021249,3]
[345326933,1734150654234,-999.3,0.00021249,3]
[345326934,1734150654243,-500.0,0.00021249,3]
[345326935,1734150654252,-999.3,0.00021249,3]
[345326936,1734150654261,-500.0,0.00021249,3]
[345326937,1734150654270,-999.3,0.00021249,3]
[345326938,1734150654280,-500.0,0.00021249,3]
[345326939,1734150654289,-999.3,0.00021249,3]
[345326940,1734150654298,-500.0,0.00021249,3]
[345326941,1734150654307,-999.3,0.00021249,3]
[345326942,1734150654317,-500.0,0.00021249,3]
[345326943,1734150654327,-500.0,0.00021249,3]
[345326944,1734150654336,-999.3,0.00021249,3]
[345326945,1734150654346,-500.0,0.00021249,3]
[345326946,1734150654355,-999.3,0.00021249,3]
[345326947,1734150654365,-999.3,0.00021249,3]
[345326948,1734150654379,-500.0,0.00021249,3]
[345326949,1734150654388,-500.0,0.00021249,3]
[345326950,1734150654398,-999.3,0.00021249,3]
[345326951,1734150654407,-500.0,0.00021249,3]
[345326952,1734150654417,-500.0,0.00021249,3]
[345326953,1734150654426,-999.3,0.00021249,3]
[345326954,1734150654435,-500.0,0.00021249,3]
[345326955,1734150654444,-500.0,0.00021249,3]
[345326956,1734150654455,-500.0,0.00021249,3]
[345326957,1734150654464,-999.38,0.00021249,3]
[345326958,1734150654473,-500.0,0.00021249,3]
[345326959,1734150654482,-500.0,0.00021249,3]
[345326960,1734150654491,-500.0,0.00021249,3]
[345326961,1734150654500,-500.0,0.00021249,3]
[345326962,1734150654509,-500.0,0.00021249,3]
[345326963,1734150654519,-500.0,0.00021249,3]
[345326964,1734150654528,-500.0,0.00021249,3]
[345326965,1734150654538,-500.0,0.00021249,3]
[345326966,1734150654547,-500.0,0.00021249,3]
[345326967,1734150654556,-500.0,0.00021249,3]
[345326968,1734150654565,-278.59531685,0.00021249,3]
[345326969,1734150654574,-500.0,0.00021249,3]
[345326970,1734150654583,-500.0,0.00021249,3]
[345326971,1734150654593,-500.0,0.00021249,3]
[345326972,1734150654602,-500.0,0.00021249,3]
[345326973,1734150654612,-500.0,0.00021249,3]
[345326974,1734150654621,-500.0,0.00021249,3]
[345326975,1734150654630,-512.56,0.00021249,3]
[345326976,1734150654641,-500.0,0.00021249,3]
[345326977,1734150654650,-380.54,0.00021249,3]
[345326978,1734150654659,-678.32,0.00021249,3]
[345326979,1734150654668,-678.32,0.00021249,3]
[345326980,1734150654677,-678.32,0.00021249,3]
[345326981,1734150654686,-678.32,0.00021249,3]
[345326982,1734150654695,-678.32,0.00021249,3]
[345326983,1734150654703,-678.32,0.00021249,3]
[345326984,1734150654712,-500.0,0.00021249,3]
[345326985,1734150654721,-678.32,0.00021249,3]
[345326986,1734150654730,-500.0,0.00021249,3]
[345326987,1734150654739,-678.32,0.00021249,3]
[345326988,1734150654747,-500.0,0.00021249,3]
[345326989,1734150654756,-678.32,0.00021249,3]
[345326990,1734150654766,-678.32,0.00021249,3]
[345326991,1734150654775,-678.32,0.00021249,3]
[345326992,1734150654784,-678.32,0.00021249,3]
[345326993,1734150654793,-678.32,0.00021249,3]
[345326994,1734150654802,-678.32,0.00021249,3]
[345326995,1734150654811,-500.0,0.00021249,3]
[345326996,1734150654820,-678.32,0.00021249,3]
[345326997,1734150654829,-500.0,0.00021249,3]
[345326998,1734150654838,-678.32,0.00021249,3]
[345326999,1734150654846,-500.0,0.00021249,3]
[345327000,1734150654855,-678.32,0.00021249,3]
[345327001,1734150654864,-678.32,0.00021249,3]
[345327002,1734150654907,-678.32,0.00021249,3]
[345327003,1734150654916,-500.0,0.00021249,3]
[345327004,1734150654925,-572.14,0.00021249,3]
[345327005,1734150654934,-678.52906035,0.00021249,3]
[345327006,1734150654942,-641.0,0.0002125,2]
[345327007,1734150654952,-5232.5726734,0.0002125,2]
[345327008,1734150654961,-4633.6645752,0.0002125,2]
[345327009,1734150654971,-200220.02932016,0.0002125,4]
[345327010,1734150654981,-663.359,0.0002125,2]
[345327011,1734150654990,-1895.0,0.0002125,2]
[345327012,1734150655001,-3765.0,0.0002125,2]
[345327013,1734150655010,-817.0,0.0002125,2]
[345327014,1734150655023,-1262.295,0.0002125,2]
[345327015,1734150655032,-3630.0,0.0002125,2]
[345327016,1734150655041,-930.0,0.0002125,2]
[345327017,1734150655050,-535.0,0.0002125,2]
[345327018,1734150655059,-1099.0,0.0002125,2]
[345327019,1734150655069,-3880.0,0.0002125,2]
[345327020,1734150655078,-150.0,0.0002125,2]
[345327021,1734150655087,-1263.0,0.0002125,2]
[345327022,1734150655096,-151.0,0.0002125,2]
[345327023,1734150655105,-567.0,0.0002125,2]
[345327024,1734150655114,-704.0,0.0002125,2]
[345327025,1734150655123,-15429205.72640673,0.0002125,2]
[345327026,1734150655343,-393.01182328,0.0002125,2]
[345327027,1734150655355,-333.37312191,0.0002125,2]
[345327028,1734150655374,-1589.07529685,0.0002125,2]
[345327029,1734150655385,-1192.7749298,0.0002125,2]
[345327030,1734150655396,-684.3000014,0.0002125,2]
[345327031,1734150655471,-420.9145017,0.0002125,2]
[345327032,1734150655481,-786.68,0.0002125,2]
[345327033,1734150655502,-11208.1991753,0.0002125,2]
[345327034,1734150655513,-401.44214624,0.0002125,2]
[345327035,1734150655549,-910.76417676,0.0002125,2]
[345327036,1734150655558,-27108.44988204,0.0002125,2]
[345327037,1734150655569,-1055.64999968,0.0002125,2]
[345327038,1734150655580,-484.65760719,0.0002125,2]
[345327039,1734150655591,-718.312218,0.0002125,2]
[345327040,1734150655753,-346.63605844,0.0002115,2]
[345327041,1734150655763,-3342.87972477,0.0002125,2]
[345327042,1734150655802,-150.0,0.0002125,2]
[345327043,1734150655811,-8868.59284828,0.0002125,2]
[345327044,1734150655822,-7388.5187318,0.0002125,2]
[345327045,1734150655832,-682.36978236,0.0002125,2]
[345327046,1734150655914,-500.0,0.00021234,3]
[345327047,1734150655922,-500.0,0.00021248,3]
[345327048,1734150655931,-500.0,0.00021249,3]
[345327049,1734150655940,-500.0,0.00021249,3]
[345327050,1734150655949,-8186.00000002,0.0002125,2]
[345327051,1734150655983,-1364.70112633,0.0002125,2]
[345327052,1734150655998,-500.0,0.00021248,3]
[345327053,1734150656008,-9126.86687837,0.0002125,2]
[345327054,1734150718651,-1000.0,0.00028545,60]
[345327055,1734150718675,-1000.0,0.00028545,60]
[345327056,1734150718699,-1091.83621758,0.00028545,120]
[345327057,1734150718722,-155.01521582,0.00028545,120]
[345327058,1734150718747,-1500.0,0.00028545,120]
[345327059,1734150718772,-170.03775504,0.00028545,120]
[345327060,1734150718797,-734.82915032,0.00028545,120]
[345327061,1734150718824,-694.98253267,0.00028545,120]
[345327062,1734150718848,-232.18230358,0.00028545,60]
[345327063,1734150718872,-1000.0,0.00028545,120]
[345327064,1734150718896,-1000.0,0.00028545,120]
[345327065,1734150718920,-1000.0,0.00028545,120]
[345327066,1734150718946,-50000.0,0.00028545,120]
[345327067,1734150718971,-4170.77648518,0.00028545,60]
[345327068,1734150718996,-4125.76786458,0.00028545,120]
[345327069,1734150719021,-3518.55286982,0.00028545,120]
[345327070,1734150719046,-3514.95826614,0.00028545,120]
[345327071,1734150719075,-4751.63451482,0.00028545,120]
[345327072,1734150719099,-4091.70883893,0.00028545,120]
[345327073,1734150719122,-4776.97490337,0.00028545,120]
[345327074,1734150719146,-4130.49698955,0.00028545,120]
[345327075,1734150719170,-19462.83944627,0.00028545,120]
[345327076,1734150719193,-6215.69861896,0.00028545,60]
[345327077,1734150719217,-11265.81869971,0.00028545,120]
[345327078,1734150719240,-52850.0,0.00028545,120]
[345327079,1734150719265,-4036.0,0.00028545,120]
[345327080,1734150719287,-8255.9918548,0.00028545,120]
[345327081,1734150719313,-1000.0,0.00028545,60]
[345327082,1734150719337,-1000.0,0.00028545,120]
[345327083,1734150719362,-1000.0,0.00028545,60]
[345327084,1734150719389,-1000.0,0.00028545,60]
[345327085,1734150719415,-1000.0,0.00028545,120]
[345327086,1734150719439,-1455.08930732,0.00028545,60]
[345327087,1734150719462,-4305.80170335,0.00028545,120]
[345327088,1734150719485,-10000.0,0.00028545,120]
[345327089,1734150719509,-10000.0,0.00028545,90]
[345327090,1734150719532,-200.0,0.00028545,120]
[345327091,1734150719559,-111273.68424151,0.00028545,120]
[345327092,1734150719586,-1273.15156697,0.00028545,120]
[345327093,1734150719617,-10000.0,0.00028545,60]
[345327094,1734150719641,-1085.9,0.00028545,120]
[345327095,1734150719664,-3121.17982508,0.00028545,120]
[345327096,1734150719688,-207.0,0.00028545,120]
[345327097,1734150719712,-228.32451563,0.00028545,60]
[345327098,1734150719737,-828.52072091,0.00028545,120]
[345327099,1734150719761,-160.0,0.00028545,120]
[345327100,1734150719784,-158.53064102,0.00028545,120]
[345327101,1734150719814,-15183.64605242,0.00028545,120]
[345327102,1734150719837,-13467.57,0.00028545,120]
[345327103,1734150719861,-400000.0,0.00028545,120]
[345327104,1734150719886,-6851.341438,0.00028545,120]
[345327105,1734150719910,-2289.62649987,0.00028545,120]
[345327106,1734150719933,-2755.84137459,0.00028545,120]
[345327107,1734150719959,-2322.51765944,0.00028545,120]
[345327108,1734150719984,-1360.94590085,0.00028545,120]
[345327109,1734150720007,-2221.51371197,0.00028545,120]
[345327110,1734150720034,-205.00508678,0.00028545,120]
[345327111,1734150720058,-225.85482534,0.00028545,120]
[345327112,1734150720090,-399.28045473,0.00028545,120]
[345327113,1734150720116,-1189.63581132,0.00028545,120]
[345327114,1734150720343,-699.00684559,0.00028545,120]
[345327115,1734150720370,-3109.74606763,0.00028545,120]
[345327116,1734150720395,-780.00015694,0.00028545,120]
[345327117,1734150720422,-1030.23404716,0.00028545,120]
[345327118,1734150720446,-783.50026609,0.00028545,120]
[345327119,1734150720472,-208.13780692,0.00028545,120]
[345327120,1734150720497,-1182.50112905,0.00028545,120]
[345327121,1734150720522,-1253.04318861,0.00028545,120]
[345327122,1734150720546,-2320.27015908,0.00028545,120]
[345327123,1734150720573,-485.62222443,0.00028545,120]
[345327124,1734150720598,-756.0,0.00028545,120]
[345327125,1734150720623,-677.14875786,0.00028545,120]
[345327126,1734150720647,-155.06568212,0.00028545,120]
[345327127,1734150720672,-1692.17537714,0.00028545,120]
[345327128,1734150720696,-11279.0,0.00028545,120]
[345327129,1734150720721,-5015.37844219,0.00028545,120]
[345327130,1734150720745,-1000.0,0.00028545,120]
[345327131,1734150720770,-5000.5649146,0.00028545,120]
[345327132,1734150720794,-1001.9229237,0.00028545,60]
[345327133,1734150720823,-117000.0,0.00028545,120]
[345327134,1734150720846,-3688.72195472,0.00028545,120]
[345327135,1734150720870,-3000.08009263,0.00028545,60]
[345327136,1734150720900,-225.83060145,0.00028545,60]
[345327137,1734150720926,-1000.0,0.00028545,120]
[345327138,1734150720951,-4099.46926505,0.00028545,60]
[345327139,1734150720976,-1015.74640144,0.00028545,120]
[345327140,1734150721004,-2543.71947937,0.00028545,120]
[345327141,1734150721032,-1042.62648598,0.00028545,120]
[345327142,1734150721057,-780.96545191,0.00028545,120]
[345327143,1734150721087,-12558.01475723,0.00028545,120]
[345327144,1734150721110,-179426.10523636,0.00028545,120]
[345327145,1734150721133,-13000.0,0.00028545,60]
[345327146,1734150721157,-4103.24770833,0.00028545,120]
[345327147,1734150721181,-1199.61890471,0.00028545,120]
[345327148,1734150721216,-200000.0,0.00028545,60]
[345327149,1734150721246,-200000.0,0.00028545,60]
[345327150,1734150721273,-200000.0,0.00028545,90]
[345327151,1734150721300,-93270.98490872,0.00028545,90]
[345327152,1734150721330,-121099.48689875,0.00028545,120]
[345327154,1734150727444,-286169.37213807,0.00028545,120]
[345327155,1734150727471,-641.49613097,0.00028545,120]
[345327156,1734150727497,-4696.27283238,0.00028545,91]
[345327157,1734150727523,-4100.96566819,0.00028545,120]
[345327158,1734150727549,-4899.61389438,0.00028545,60]
[345327159,1734150727576,-154.27022013,0.00028545,120]
[345327160,1734150727602,-161.84316773,0.00028545,120]
[345327161,1734150727627,-5757.89511424,0.00028545,120]
[345327162,1734150727652,-5000.0,0.00028545,120]
[345327163,1734150727676,-172211.94682771,0.00028545,90]
[345327164,1734150727700,-36932.01576854,0.00028545,60]
[345327165,1734150727725,-163.24595415,0.00028545,120]
[345327166,1734150727749,-517.57006851,0.00028545,120]
[345327167,1734150727774,-4500000.0,0.00028545,120]
[345327168,1734150727798,-3972.38322554,0.00028545,120]
[345327169,1734150727822,-689.0,0.00028545,120]
[345327170,1734150727847,-3352.0,0.00028545,120]
[345327171,1734150727871,-10000.0,0.00028545,120]
[345327172,1734150727895,-235.0,0.00028545,120]
[345327173,1734150727920,-10000.0,0.00028545,120]
[345327174,1734150727945,-61903.58964203,0.00028545,60]
[345327175,1734150727970,-10000.0,0.00028545,120]
[345327176,1734150727994,-5107.81075939,0.00028545,120]
[345327177,1734150728018,-10000.0,0.00028545,120]
[345327178,1734150728042,-10000.0,0.00028545,120]
[345327179,1734150728066,-10000.0,0.00028545,120]
[345327180,1734150728092,-10000.0,0.00028545,120]
[345327181,1734150728117,-10000.0,0.00028545,120]
[345327182,1734150728143,-10000.0,0.00028545,120]
[345327183,1734150728170,-7409.0,0.00028545,120]
[345327184,1734150728196,-8846.94594068,0.00028545,120]
[345327185,1734150728223,-28980.64940692,0.00028545,120]
[345327186,1734150728249,-211.53236125,0.00028545,120]
[345327187,1734150728273,-8814.25950889,0.00028545,120]
[345327188,1734150728299,-3628.28930017,0.00028545,90]
[345327189,1734150728330,-714.65121274,0.00028545,120]
[345327190,1734150728355,-290.29836991,0.00028545,120]
[345327198,1734151356116,153.72,0.00010137,2]
[345327201,1734151413909,2000.0,0.00019193,120]
[345327202,1734151540116,-747.68905536,0.00014281,7]
[345327203,1734151614102,-300.0,0.0001428,2]
[345327204,1734151614121,-271.52032904,0.00014281,7]
[345327205,1734151628095,-322.59855978,0.00014281,7]
[345327206,1734151632100,-266.0856806,0.00014281,7]
[345327207,1734151640105,-4625.73422381,0.00014281,7]
[345327208,1734151643108,-338.21759345,0.00014281,7]
[345327209,1734151646093,-2277.7641857,0.00014281,7]
[345327210,1734151652208,-2810.94931516,0.00014281,7]
[345327211,1734151652228,-500.0,0.00017414,2]
[345327212,1734151652247,-600.0,0.00017414,2]
[345327213,1734151652267,-98.83373794,0.00017414,2]
[345327214,1734151772086,-402.81354587,0.00017414,2]
[345327215,1734151772106,-500.0,0.00017414,2]
[345327216,1734151772125,-500.0,0.00017414,2]
[345327217,1734151772144,-150.0,0.00017507,2]
[345327218,1734151772164,-118.10934783,0.00017533,2]
[345327223,1734151831525,-47.02673417,0.00017533,2]
[345327225,1734151831535,-158.085492,0.00017533,2]
[345327226,1734151831544,-506.911447,0.0001808,2]
[345327231,1734151831579,-173.968553,0.0001808,2]
[345327233,1734151831589,-500.0,0.0001851,2]
[345327234,1734151831599,-124.8003263,0.00018818,2]